Workbook

Sheet חישוב שעות
A1: הכנס חודש | B1: הכנס תעריף | C1: סה"כ מונה | D1: סה"כ לא נקלט | E1: סכום ביניים | G1: זכות\חובה ישנה | I1: סה"כ לתשלום
A2: 2022-08-01 | B2: 40 | C2: =SUM(D9:D280) -> 8.101851563e-05 | D2: =SUM(I9:I280) -> 0.6666666667 | E2: =SUM(C2*(B2*24),D2*(B2*24)) -> 640.0777778 | G2: 0 | I2: =SUM(E2,G2,) -> 640.0777778
A4: לוח בקרה | H4: לוח בקרה
A7: מונה שעות עבודה | H7: הכנס ידני סך שעות שלא נקלט במונה | P7: 2019-11-01
A8: תאריך | B8: שעת התחלה | C8: שעת סיום | D8: סה"כ | E8: לתשלום | F8: מס | H8: תאריך | I8: סך שעות | J8: לתשלום | P8: 2019-12-01
A9: 2022-08-19 | B9: 44792.53027 | C9: 44792.53028 | D9: =IF(C9="","",(SUM(C9-B9))) -> 00:00:01 | E9: =IF(D9="","",SUM(D9*($B$2*24))) -> 0.01111110672 | H9: 2022-08-19 | I9: 12:00:00
A10: 2022-08-19 | B10: 44792.5303 | C10: 44792.53032 | D10: 00:00:02 | E10: =IF(D10="","",SUM(D10*($B$2*24))) -> 0.02222222742 | F10: =IF($A10=$A11,"",MAX($F$8:F9)+1) ->  | I10: 04:00:00 | J10: =IF(I10="","",SUM(I10*($B$2*24))) -> 160 | P10: 2020-02-01
A11: 2022-08-19 | B11: 44792.53042 | C11: 44792.53046 | D11: 00:00:04 | E11: 0.04444444086 | F11: =IF($A11=$A12,"",MAX($F$8:F10)+1) -> 1 | P11: 2020-03-01
F12: =IF($A12=$A13,"",MAX($F$8:F11)+1) ->  | P12: 2020-04-01
F13: =IF($A13=$A14,"",MAX($F$8:F12)+1) ->  | P13: 2020-05-01
F14: =IF($A14=$A15,"",MAX($F$8:F13)+1) ->  | P14: 2020-06-01
F15: =IF($A15=$A16,"",MAX($F$8:F14)+1) ->  | P15: 2020-07-01
F16: =IF($A16=$A17,"",MAX($F$8:F15)+1) ->  | P16: 2020-08-01
D17: =IF(C17="","",(SUM(C17-B17))) ->  | F17: =IF($A17=$A18,"",MAX($F$8:F16)+1) ->  | P17: 2020-09-01
F18: =IF($A18=$A19,"",MAX($F$8:F17)+1) ->  | P18: 2020-10-01
F19: =IF($A19=$A20,"",MAX($F$8:F18)+1) ->  | P19: 2020-11-01
F20: =IF($A20=$A21,"",MAX($F$8:F19)+1) ->  | P20: 2020-12-01
F21: =IF($A21=$A22,"",MAX($F$8:F20)+1) ->  | P21: 2021-01-01
F22: =IF($A22=$A23,"",MAX($F$8:F21)+1) ->  | P22: 2021-02-01
F23: =IF($A23=$A24,"",MAX($F$8:F22)+1) ->  | P23: 2021-03-01
F24: =IF($A24=$A25,"",MAX($F$8:F23)+1) ->  | P24: 2021-04-01
F25: =IF($A25=$A26,"",MAX($F$8:F24)+1) ->  | P25: 2021-05-01
F26: =IF($A26=$A27,"",MAX($F$8:F25)+1) ->  | P26: 2021-06-01
F27: =IF($A27=$A28,"",MAX($F$8:F26)+1) ->  | P27: 2021-07-01
F28: =IF($A28=$A29,"",MAX($F$8:F27)+1) ->  | P28: 2021-08-01
F29: =IF($A29=$A30,"",MAX($F$8:F28)+1) ->  | P29: 2021-09-01
F30: =IF($A30=$A31,"",MAX($F$8:F29)+1) ->  | P30: 2021-10-01
F31: =IF($A31=$A32,"",MAX($F$8:F30)+1) ->  | P31: 2021-11-01
F32: =IF($A32=$A33,"",MAX($F$8:F31)+1) ->  | P32: 2021-12-01
F33: =IF($A33=$A34,"",MAX($F$8:F32)+1) ->  | P33: 2022-01-01
F34: =IF($A34=$A35,"",MAX($F$8:F33)+1) ->  | P34: 2022-02-01
F35: =IF($A35=$A36,"",MAX($F$8:F34)+1) ->  | P35: 2022-03-01
F36: =IF($A36=$A37,"",MAX($F$8:F35)+1) ->  | P36: 2022-04-01
F37: =IF($A37=$A38,"",MAX($F$8:F36)+1) ->  | P37: 2022-05-01
F38: =IF($A38=$A39,"",MAX($F$8:F37)+1) ->  | P38: 2022-06-01
F39: =IF($A39=$A40,"",MAX($F$8:F38)+1) ->  | P39: 2022-07-01
F40: =IF($A40=$A41,"",MAX($F$8:F39)+1) ->  | P40: 2022-08-01
F41: =IF($A41=$A42,"",MAX($F$8:F40)+1) ->  | P41: 2022-09-01
F42: =IF($A42=$A43,"",MAX($F$8:F41)+1) ->  | P42: 2022-10-01
F43: =IF($A43=$A44,"",MAX($F$8:F42)+1) ->  | P43: 2022-11-01
F44: =IF($A44=$A45,"",MAX($F$8:F43)+1) ->  | P44: 2022-12-01
F45: =IF($A45=$A46,"",MAX($F$8:F44)+1) ->  | P45: 2023-01-01
F46: =IF($A46=$A47,"",MAX($F$8:F45)+1) ->  | P46: 2023-02-01
F47: =IF($A47=$A48,"",MAX($F$8:F46)+1) ->  | P47: 2023-03-01
F48: =IF($A48=$A49,"",MAX($F$8:F47)+1) ->  | P48: 2023-04-01
F49: =IF($A49=$A50,"",MAX($F$8:F48)+1) ->  | P49: 2023-05-01
F50: =IF($A50=$A51,"",MAX($F$8:F49)+1) ->  | P50: 2023-06-01
F51: =IF($A51=$A52,"",MAX($F$8:F50)+1) ->  | P51: 2023-07-01
F52: =IF($A52=$A53,"",MAX($F$8:F51)+1) ->  | P52: 2023-08-01
F53: =IF($A53=$A54,"",MAX($F$8:F52)+1) ->  | P53: 2023-09-01
F54: =IF($A54=$A55,"",MAX($F$8:F53)+1) ->  | P54: 2023-10-01
F55: =IF($A55=$A56,"",MAX($F$8:F54)+1) ->  | P55: 2023-11-01
F56: =IF($A56=$A57,"",MAX($F$8:F55)+1) ->  | P56: 2023-12-01
F57: =IF($A57=$A58,"",MAX($F$8:F56)+1) ->  | P57: 2024-01-01
F58: =IF($A58=$A59,"",MAX($F$8:F57)+1) ->  | P58: 2024-02-01
F59: =IF($A59=$A60,"",MAX($F$8:F58)+1) ->  | P59: 2024-03-01
F60: =IF($A60=$A61,"",MAX($F$8:F59)+1) ->  | P60: 2024-04-01
F61: =IF($A61=$A62,"",MAX($F$8:F60)+1) ->  | P61: 2024-05-01
F62: =IF($A62=$A63,"",MAX($F$8:F61)+1) ->  | P62: 2024-06-01
F63: =IF($A63=$A64,"",MAX($F$8:F62)+1) ->  | P63: 2024-07-01
F64: =IF($A64=$A65,"",MAX($F$8:F63)+1) ->  | P64: 2024-08-01
F65: =IF($A65=$A66,"",MAX($F$8:F64)+1) ->  | P65: 2024-09-01
F66: =IF($A66=$A67,"",MAX($F$8:F65)+1) ->  | P66: 2024-10-01
F67: =IF($A67=$A68,"",MAX($F$8:F66)+1) ->  | P67: 2024-11-01
F68: =IF($A68=$A69,"",MAX($F$8:F67)+1) ->  | P68: 2024-12-01
F69: =IF($A69=$A70,"",MAX($F$8:F68)+1) ->  | P69: 2025-01-01
F70: =IF($A70=$A71,"",MAX($F$8:F69)+1) ->  | P70: 2025-02-01
F71: =IF($A71=$A72,"",MAX($F$8:F70)+1) ->  | P71: 2025-03-01
F72: =IF($A72=$A73,"",MAX($F$8:F71)+1) ->  | P72: 2025-04-01
E73: =IF(D73="","",SUM(D73*($B$2*24))) ->  | F73: =IF($A73=$A74,"",MAX($F$8:F72)+1) ->  | J73: =IF(I73="","",SUM(I73*($B$2*24))) ->  | P73: 2025-05-01
F74: =IF($A74=$A75,"",MAX($F$8:F73)+1) ->  | P74: 2025-06-01
F75: =IF($A75=$A76,"",MAX($F$8:F74)+1) ->  | P75: 2025-07-01
F76: =IF($A76=$A77,"",MAX($F$8:F75)+1) ->  | P76: 2025-08-01
F77: =IF($A77=$A78,"",MAX($F$8:F76)+1) ->  | P77: 2025-09-01
F78: =IF($A78=$A79,"",MAX($F$8:F77)+1) ->  | P78: 2025-10-01
F79: =IF($A79=$A80,"",MAX($F$8:F78)+1) ->  | P79: 2025-11-01
F80: =IF($A80=$A81,"",MAX($F$8:F79)+1) ->  | P80: 2025-12-01
D81: =IF(C81="","",(SUM(C81-B81))) ->  | F81: =IF($A81=$A82,"",MAX($F$8:F80)+1) ->  | P81: 2026-01-01
F82: =IF($A82=$A83,"",MAX($F$8:F81)+1) ->  | P82: 2026-02-01
F83: =IF($A83=$A84,"",MAX($F$8:F82)+1) ->  | P83: 2026-03-01
F84: =IF($A84=$A85,"",MAX($F$8:F83)+1) ->  | P84: 2026-04-01
F85: =IF($A85=$A86,"",MAX($F$8:F84)+1) ->  | P85: 2026-05-01
F86: =IF($A86=$A87,"",MAX($F$8:F85)+1) ->  | P86: 2026-06-01
F87: =IF($A87=$A88,"",MAX($F$8:F86)+1) ->  | P87: 2026-07-01
F88: =IF($A88=$A89,"",MAX($F$8:F87)+1) ->  | P88: 2026-08-01
F89: =IF($A89=$A90,"",MAX($F$8:F88)+1) ->  | P89: 2026-09-01
F90: =IF($A90=$A91,"",MAX($F$8:F89)+1) ->  | P90: 2026-10-01
D91: =IF(C91="","",(SUM(C91-B91))) ->  | F91: =IF($A91=$A92,"",MAX($F$8:F90)+1) ->  | P91: 2026-11-01
F92: =IF($A92=$A93,"",MAX($F$8:F91)+1) ->  | P92: 2026-12-01
F93: =IF($A93=$A94,"",MAX($F$8:F92)+1) ->  | P93: 2027-01-01
F94: =IF($A94=$A95,"",MAX($F$8:F93)+1) ->  | P94: 2027-02-01
D95: =IF(C95="","",(SUM(C95-B95))) ->  | F95: =IF($A95=$A96,"",MAX($F$8:F94)+1) ->  | P95: 2027-03-01
F96: =IF($A96=$A97,"",MAX($F$8:F95)+1) ->  | P96: 2027-04-01
F97: =IF($A97=$A98,"",MAX($F$8:F96)+1) ->  | P97: 2027-05-01
F98: =IF($A98=$A99,"",MAX($F$8:F97)+1) ->  | P98: 2027-06-01
F99: =IF($A99=$A100,"",MAX($F$8:F98)+1) ->  | P99: 2027-07-01
F100: =IF($A100=$A101,"",MAX($F$8:F99)+1) ->  | P100: 2027-08-01
F101: =IF($A101=$A102,"",MAX($F$8:F100)+1) ->  | P101: 2027-09-01
F102: =IF($A102=$A103,"",MAX($F$8:F101)+1) ->  | P102: 2027-10-01
F103: =IF($A103=$A104,"",MAX($F$8:F102)+1) ->  | P103: 2027-11-01
F104: =IF($A104=$A105,"",MAX($F$8:F103)+1) ->  | P104: 2027-12-01
F105: =IF($A105=$A106,"",MAX($F$8:F104)+1) ->  | P105: 2028-01-01
F106: =IF($A106=$A107,"",MAX($F$8:F105)+1) ->  | P106: 2028-02-01
F107: =IF($A107=$A108,"",MAX($F$8:F106)+1) ->  | P107: 2028-03-01
F108: =IF($A108=$A109,"",MAX($F$8:F107)+1) ->  | P108: 2028-04-01
F109: =IF($A109=$A110,"",MAX($F$8:F108)+1) ->  | P109: 2028-05-01
F110: =IF($A110=$A111,"",MAX($F$8:F109)+1) ->  | P110: 2028-06-01
F111: =IF($A111=$A112,"",MAX($F$8:F110)+1) ->  | P111: 2028-07-01
F112: =IF($A112=$A113,"",MAX($F$8:F111)+1) ->  | P112: 2028-08-01
F113: =IF($A113=$A114,"",MAX($F$8:F112)+1) ->  | P113: 2028-09-01
F114: =IF($A114=$A115,"",MAX($F$8:F113)+1) ->  | P114: 2028-10-01
F115: =IF($A115=$A116,"",MAX($F$8:F114)+1) ->  | P115: 2028-11-01
F116: =IF($A116=$A117,"",MAX($F$8:F115)+1) ->  | P116: 2028-12-01
F117: =IF($A117=$A118,"",MAX($F$8:F116)+1) ->  | P117: 2029-01-01
F118: =IF($A118=$A119,"",MAX($F$8:F117)+1) ->  | P118: 2029-02-01
F119: =IF($A119=$A120,"",MAX($F$8:F118)+1) ->  | P119: 2029-03-01
F120: =IF($A120=$A121,"",MAX($F$8:F119)+1) ->  | P120: 2029-04-01
F121: =IF($A121=$A122,"",MAX($F$8:F120)+1) ->  | P121: 2029-05-01
D122: =IF(C122="","",(SUM(C122-B122))) ->  | F122: =IF($A122=$A123,"",MAX($F$8:F121)+1) ->  | P122: 2029-06-01
F123: =IF($A123=$A124,"",MAX($F$8:F122)+1) ->  | P123: 2029-07-01
F124: =IF($A124=$A125,"",MAX($F$8:F123)+1) ->  | P124: 2029-08-01
F125: =IF($A125=$A126,"",MAX($F$8:F124)+1) ->  | P125: 2029-09-01
F126: =IF($A126=$A127,"",MAX($F$8:F125)+1) ->  | P126: 2029-10-01
F127: =IF($A127=$A128,"",MAX($F$8:F126)+1) ->  | P127: 2029-11-01
F128: =IF($A128=$A129,"",MAX($F$8:F127)+1) ->  | P128: 2029-12-01
F129: =IF($A129=$A130,"",MAX($F$8:F128)+1) ->  | P129: 2030-01-01
F130: =IF($A130=$A131,"",MAX($F$8:F129)+1) ->  | P130: 2030-02-01
F131: =IF($A131=$A132,"",MAX($F$8:F130)+1) ->  | P131: 2030-03-01
F132: =IF($A132=$A133,"",MAX($F$8:F131)+1) ->  | P132: 2030-04-01
F133: =IF($A133=$A134,"",MAX($F$8:F132)+1) ->  | P133: 2030-05-01
F134: =IF($A134=$A135,"",MAX($F$8:F133)+1) ->  | P134: 2030-06-01
F135: =IF($A135=$A136,"",MAX($F$8:F134)+1) ->  | P135: 2030-07-01
F136: =IF($A136=$A137,"",MAX($F$8:F135)+1) ->  | P136: 2030-08-01
E137: =IF(D137="","",SUM(D137*($B$2*24))) ->  | F137: =IF($A137=$A138,"",MAX($F$8:F136)+1) ->  | J137: =IF(I137="","",SUM(I137*($B$2*24))) ->  | P137: 2030-09-01
F138: =IF($A138=$A139,"",MAX($F$8:F137)+1) ->  | P138: 2030-10-01
F139: =IF($A139=$A140,"",MAX($F$8:F138)+1) ->  | P139: 2030-11-01
F140: =IF($A140=$A141,"",MAX($F$8:F139)+1) ->  | P140: 2030-12-01
F141: =IF($A141=$A142,"",MAX($F$8:F140)+1) -> 
F142: =IF($A142=$A143,"",MAX($F$8:F141)+1) -> 
F143: =IF($A143=$A144,"",MAX($F$8:F142)+1) -> 
F144: =IF($A144=$A145,"",MAX($F$8:F143)+1) -> 
F145: =IF($A145=$A146,"",MAX($F$8:F144)+1) -> 
F146: =IF($A146=$A147,"",MAX($F$8:F145)+1) -> 
F147: =IF($A147=$A148,"",MAX($F$8:F146)+1) -> 
D148: =IF(C148="","",(SUM(C148-B148))) ->  | F148: =IF($A148=$A149,"",MAX($F$8:F147)+1) -> 
F149: =IF($A149=$A150,"",MAX($F$8:F148)+1) -> 
F150: =IF($A150=$A151,"",MAX($F$8:F149)+1) -> 
F151: =IF($A151=$A152,"",MAX($F$8:F150)+1) -> 
F152: =IF($A152=$A153,"",MAX($F$8:F151)+1) -> 
F153: =IF($A153=$A154,"",MAX($F$8:F152)+1) -> 
F154: =IF($A154=$A155,"",MAX($F$8:F153)+1) -> 
F155: =IF($A155=$A156,"",MAX($F$8:F154)+1) -> 
F156: =IF($A156=$A157,"",MAX($F$8:F155)+1) -> 
F157: =IF($A157=$A158,"",MAX($F$8:F156)+1) -> 
F158: =IF($A158=$A159,"",MAX($F$8:F157)+1) -> 
F159: =IF($A159=$A160,"",MAX($F$8:F158)+1) -> 
F160: =IF($A160=$A161,"",MAX($F$8:F159)+1) -> 
F161: =IF($A161=$A162,"",MAX($F$8:F160)+1) -> 
F162: =IF($A162=$A163,"",MAX($F$8:F161)+1) -> 
F163: =IF($A163=$A164,"",MAX($F$8:F162)+1) -> 
F164: =IF($A164=$A165,"",MAX($F$8:F163)+1) -> 
F165: =IF($A165=$A166,"",MAX($F$8:F164)+1) -> 
F166: =IF($A166=$A167,"",MAX($F$8:F165)+1) -> 
F167: =IF($A167=$A168,"",MAX($F$8:F166)+1) -> 
F168: =IF($A168=$A169,"",MAX($F$8:F167)+1) -> 
F169: =IF($A169=$A170,"",MAX($F$8:F168)+1) -> 
F170: =IF($A170=$A171,"",MAX($F$8:F169)+1) -> 
F171: =IF($A171=$A172,"",MAX($F$8:F170)+1) -> 
F172: =IF($A172=$A173,"",MAX($F$8:F171)+1) -> 
F173: =IF($A173=$A174,"",MAX($F$8:F172)+1) -> 
F174: =IF($A174=$A175,"",MAX($F$8:F173)+1) -> 
F175: =IF($A175=$A176,"",MAX($F$8:F174)+1) -> 
F176: =IF($A176=$A177,"",MAX($F$8:F175)+1) -> 
F177: =IF($A177=$A178,"",MAX($F$8:F176)+1) -> 
F178: =IF($A178=$A179,"",MAX($F$8:F177)+1) -> 
F179: =IF($A179=$A180,"",MAX($F$8:F178)+1) -> 
D180: =IF(C180="","",(SUM(C180-B180))) ->  | F180: =IF($A180=$A181,"",MAX($F$8:F179)+1) -> 
D181: =IF(C181="","",(SUM(C181-B181))) ->  | F181: =IF($A181=$A182,"",MAX($F$8:F180)+1) -> 
F182: =IF($A182=$A183,"",MAX($F$8:F181)+1) -> 
F183: =IF($A183=$A184,"",MAX($F$8:F182)+1) -> 
F184: =IF($A184=$A185,"",MAX($F$8:F183)+1) -> 
F185: =IF($A185=$A186,"",MAX($F$8:F184)+1) -> 
F186: =IF($A186=$A187,"",MAX($F$8:F185)+1) -> 
F187: =IF($A187=$A188,"",MAX($F$8:F186)+1) -> 
F188: =IF($A188=$A189,"",MAX($F$8:F187)+1) -> 
F189: =IF($A189=$A190,"",MAX($F$8:F188)+1) -> 
F190: =IF($A190=$A191,"",MAX($F$8:F189)+1) -> 
F191: =IF($A191=$A192,"",MAX($F$8:F190)+1) -> 
F192: =IF($A192=$A193,"",MAX($F$8:F191)+1) -> 
F193: =IF($A193=$A194,"",MAX($F$8:F192)+1) -> 
F194: =IF($A194=$A195,"",MAX($F$8:F193)+1) -> 
F195: =IF($A195=$A196,"",MAX($F$8:F194)+1) -> 
F196: =IF($A196=$A197,"",MAX($F$8:F195)+1) -> 
F197: =IF($A197=$A198,"",MAX($F$8:F196)+1) -> 
F198: =IF($A198=$A199,"",MAX($F$8:F197)+1) -> 
D199: =IF(C199="","",(SUM(C199-B199))) ->  | F199: =IF($A199=$A200,"",MAX($F$8:F198)+1) -> 
D200: =IF(C200="","",(SUM(C200-B200))) ->  | F200: =IF($A200=$A201,"",MAX($F$8:F199)+1) -> 
E201: =IF(D201="","",SUM(D201*($B$2*24))) ->  | F201: =IF($A201=$A202,"",MAX($F$8:F200)+1) ->  | J201: =IF(I201="","",SUM(I201*($B$2*24))) -> 
F202: =IF($A202=$A203,"",MAX($F$8:F201)+1) -> 
F203: =IF($A203=$A204,"",MAX($F$8:F202)+1) -> 
... 81 more rows

Sheet סיכום חודשי
A1: חודש | E1: הכנס יעד יומי | F1: הכנס יעד חודשי
A2: ='חישוב שעות'!A2 -> 2022-08-01 | E2: 0.125 | F2: 2.5
A3: תאריך | B3: יום בשבוע | C3: סה"כ | D3: לתשלום | E3: אחוז מהיעד היומי | F3: אחוז מהיעד החודשי
A4: ='חישוב שעות'!A2 -> 2022-08-01 | B4: =A4 -> 2022-08-01 | C4: =SUMIF(טבלה2[תאריך],A4,טבלה2[סך שעות])+SUMIF(טבלה1[תאריך],A4,טבלה1[סה"כ]) -> 00:00:00 | D4: =SUMIF(טבלה2[תאריך],A4,טבלה2[לתשלום])+SUMIF(טבלה1[תאריך],A4,טבלה1[לתשלום]) -> 0 | E4: =C4/יעד_יומי -> 0 | F4: =(SUM($C$4:C4)+SUM('חישוב שעות'!$I$9:$I$11))/הכנס_יעד_חודשי -> 0.2666666667
A5: =A4+1 -> 2022-08-02 | B5: =A5 -> 2022-08-02 | C5: =SUMIF(טבלה2[תאריך],A5,טבלה2[סך שעות])+SUMIF(טבלה1[תאריך],A5,טבלה1[סה"כ]) -> 00:00:00 | D5: =SUMIF(טבלה2[תאריך],A5,טבלה2[לתשלום])+SUMIF(טבלה1[תאריך],A5,טבלה1[לתשלום]) -> 0 | E5: 0 | F5: =(SUM($C$4:C5)+SUM('חישוב שעות'!$I$9:$I$11))/הכנס_יעד_חודשי -> 0.2666666667
A6: 2022-08-03 | B6: 2022-08-03 | C6: =SUMIF(טבלה2[תאריך],A6,טבלה2[סך שעות])+SUMIF(טבלה1[תאריך],A6,טבלה1[סה"כ]) -> 00:00:00 | D6: =SUMIF(טבלה2[תאריך],A6,טבלה2[לתשלום])+SUMIF(טבלה1[תאריך],A6,טבלה1[לתשלום]) -> 0 | E6: 0 | F6: =(SUM($C$4:C6)+SUM('חישוב שעות'!$I$9:$I$11))/הכנס_יעד_חודשי -> 0.2666666667
A7: 2022-08-04 | B7: 2022-08-04 | C7: =SUMIF(טבלה2[תאריך],A7,טבלה2[סך שעות])+SUMIF(טבלה1[תאריך],A7,טבלה1[סה"כ]) -> 00:00:00 | D7: =SUMIF(טבלה2[תאריך],A7,טבלה2[לתשלום])+SUMIF(טבלה1[תאריך],A7,טבלה1[לתשלום]) -> 0 | E7: 0 | F7: =(SUM($C$4:C7)+SUM('חישוב שעות'!$I$9:$I$11))/הכנס_יעד_חודשי -> 0.2666666667
A8: 2022-08-05 | B8: 2022-08-05 | C8: =SUMIF(טבלה2[תאריך],A8,טבלה2[סך שעות])+SUMIF(טבלה1[תאריך],A8,טבלה1[סה"כ]) -> 00:00:00 | D8: =SUMIF(טבלה2[תאריך],A8,טבלה2[לתשלום])+SUMIF(טבלה1[תאריך],A8,טבלה1[לתשלום]) -> 0 | E8: 0 | F8: =(SUM($C$4:C8)+SUM('חישוב שעות'!$I$9:$I$11))/הכנס_יעד_חודשי -> 0.2666666667
A9: 2022-08-06 | B9: 2022-08-06 | C9: =SUMIF(טבלה2[תאריך],A9,טבלה2[סך שעות])+SUMIF(טבלה1[תאריך],A9,טבלה1[סה"כ]) -> 00:00:00 | D9: =SUMIF(טבלה2[תאריך],A9,טבלה2[לתשלום])+SUMIF(טבלה1[תאריך],A9,טבלה1[לתשלום]) -> 0 | E9: 0 | F9: =(SUM($C$4:C9)+SUM('חישוב שעות'!$I$9:$I$11))/הכנס_יעד_חודשי -> 0.2666666667
A10: 2022-08-07 | B10: 2022-08-07 | C10: =SUMIF(טבלה2[תאריך],A10,טבלה2[סך שעות])+SUMIF(טבלה1[תאריך],A10,טבלה1[סה"כ]) -> 00:00:00 | D10: =SUMIF(טבלה2[תאריך],A10,טבלה2[לתשלום])+SUMIF(טבלה1[תאריך],A10,טבלה1[לתשלום]) -> 0 | E10: 0 | F10: =(SUM($C$4:C10)+SUM('חישוב שעות'!$I$9:$I$11))/הכנס_יעד_חודשי -> 0.2666666667
A11: 2022-08-08 | B11: 2022-08-08 | C11: =SUMIF(טבלה2[תאריך],A11,טבלה2[סך שעות])+SUMIF(טבלה1[תאריך],A11,טבלה1[סה"כ]) -> 00:00:00 | D11: =SUMIF(טבלה2[תאריך],A11,טבלה2[לתשלום])+SUMIF(טבלה1[תאריך],A11,טבלה1[לתשלום]) -> 0 | E11: 0 | F11: =(SUM($C$4:C11)+SUM('חישוב שעות'!$I$9:$I$11))/הכנס_יעד_חודשי -> 0.2666666667
A12: 2022-08-09 | B12: 2022-08-09 | C12: =SUMIF(טבלה2[תאריך],A12,טבלה2[סך שעות])+SUMIF(טבלה1[תאריך],A12,טבלה1[סה"כ]) -> 00:00:00 | D12: =SUMIF(טבלה2[תאריך],A12,טבלה2[לתשלום])+SUMIF(טבלה1[תאריך],A12,טבלה1[לתשלום]) -> 0 | E12: 0 | F12: =(SUM($C$4:C12)+SUM('חישוב שעות'!$I$9:$I$11))/הכנס_יעד_חודשי -> 0.2666666667
A13: 2022-08-10 | B13: 2022-08-10 | C13: =SUMIF(טבלה2[תאריך],A13,טבלה2[סך שעות])+SUMIF(טבלה1[תאריך],A13,טבלה1[סה"כ]) -> 00:00:00 | D13: =SUMIF(טבלה2[תאריך],A13,טבלה2[לתשלום])+SUMIF(טבלה1[תאריך],A13,טבלה1[לתשלום]) -> 0 | E13: 0 | F13: =(SUM($C$4:C13)+SUM('חישוב שעות'!$I$9:$I$11))/הכנס_יעד_חודשי -> 0.2666666667
A14: 2022-08-11 | B14: 2022-08-11 | C14: =SUMIF(טבלה2[תאריך],A14,טבלה2[סך שעות])+SUMIF(טבלה1[תאריך],A14,טבלה1[סה"כ]) -> 00:00:00 | D14: =SUMIF(טבלה2[תאריך],A14,טבלה2[לתשלום])+SUMIF(טבלה1[תאריך],A14,טבלה1[לתשלום]) -> 0 | E14: 0 | F14: =(SUM($C$4:C14)+SUM('חישוב שעות'!$I$9:$I$11))/הכנס_יעד_חודשי -> 0.2666666667
A15: 2022-08-12 | B15: 2022-08-12 | C15: =SUMIF(טבלה2[תאריך],A15,טבלה2[סך שעות])+SUMIF(טבלה1[תאריך],A15,טבלה1[סה"כ]) -> 00:00:00 | D15: =SUMIF(טבלה2[תאריך],A15,טבלה2[לתשלום])+SUMIF(טבלה1[תאריך],A15,טבלה1[לתשלום]) -> 0 | E15: 0 | F15: =(SUM($C$4:C15)+SUM('חישוב שעות'!$I$9:$I$11))/הכנס_יעד_חודשי -> 0.2666666667
A16: 2022-08-13 | B16: 2022-08-13 | C16: =SUMIF(טבלה2[תאריך],A16,טבלה2[סך שעות])+SUMIF(טבלה1[תאריך],A16,טבלה1[סה"כ]) -> 00:00:00 | D16: =SUMIF(טבלה2[תאריך],A16,טבלה2[לתשלום])+SUMIF(טבלה1[תאריך],A16,טבלה1[לתשלום]) -> 0 | E16: 0 | F16: =(SUM($C$4:C16)+SUM('חישוב שעות'!$I$9:$I$11))/הכנס_יעד_חודשי -> 0.2666666667
A17: 2022-08-14 | B17: 2022-08-14 | C17: =SUMIF(טבלה2[תאריך],A17,טבלה2[סך שעות])+SUMIF(טבלה1[תאריך],A17,טבלה1[סה"כ]) -> 00:00:00 | D17: =SUMIF(טבלה2[תאריך],A17,טבלה2[לתשלום])+SUMIF(טבלה1[תאריך],A17,טבלה1[לתשלום]) -> 0 | E17: 0 | F17: =(SUM($C$4:C17)+SUM('חישוב שעות'!$I$9:$I$11))/הכנס_יעד_חודשי -> 0.2666666667
A18: 2022-08-15 | B18: 2022-08-15 | C18: =SUMIF(טבלה2[תאריך],A18,טבלה2[סך שעות])+SUMIF(טבלה1[תאריך],A18,טבלה1[סה"כ]) -> 00:00:00 | D18: =SUMIF(טבלה2[תאריך],A18,טבלה2[לתשלום])+SUMIF(טבלה1[תאריך],A18,טבלה1[לתשלום]) -> 0 | E18: 0 | F18: =(SUM($C$4:C18)+SUM('חישוב שעות'!$I$9:$I$11))/הכנס_יעד_חודשי -> 0.2666666667
A19: 2022-08-16 | B19: 2022-08-16 | C19: =SUMIF(טבלה2[תאריך],A19,טבלה2[סך שעות])+SUMIF(טבלה1[תאריך],A19,טבלה1[סה"כ]) -> 00:00:00 | D19: =SUMIF(טבלה2[תאריך],A19,טבלה2[לתשלום])+SUMIF(טבלה1[תאריך],A19,טבלה1[לתשלום]) -> 0 | E19: 0 | F19: =(SUM($C$4:C19)+SUM('חישוב שעות'!$I$9:$I$11))/הכנס_יעד_חודשי -> 0.2666666667
A20: 2022-08-17 | B20: 2022-08-17 | C20: =SUMIF(טבלה2[תאריך],A20,טבלה2[סך שעות])+SUMIF(טבלה1[תאריך],A20,טבלה1[סה"כ]) -> 00:00:00 | D20: =SUMIF(טבלה2[תאריך],A20,טבלה2[לתשלום])+SUMIF(טבלה1[תאריך],A20,טבלה1[לתשלום]) -> 0 | E20: 0 | F20: =(SUM($C$4:C20)+SUM('חישוב שעות'!$I$9:$I$11))/הכנס_יעד_חודשי -> 0.2666666667
A21: 2022-08-18 | B21: 2022-08-18 | C21: =SUMIF(טבלה2[תאריך],A21,טבלה2[סך שעות])+SUMIF(טבלה1[תאריך],A21,טבלה1[סה"כ]) -> 00:00:00 | D21: =SUMIF(טבלה2[תאריך],A21,טבלה2[לתשלום])+SUMIF(טבלה1[תאריך],A21,טבלה1[לתשלום]) -> 0 | E21: 0 | F21: =(SUM($C$4:C21)+SUM('חישוב שעות'!$I$9:$I$11))/הכנס_יעד_חודשי -> 0.2666666667
A22: 2022-08-19 | B22: 2022-08-19 | C22: =SUMIF(טבלה2[תאריך],A22,טבלה2[סך שעות])+SUMIF(טבלה1[תאריך],A22,טבלה1[סה"כ]) -> 12:00:07 | D22: =SUMIF(טבלה2[תאריך],A22,טבלה2[לתשלום])+SUMIF(טבלה1[תאריך],A22,טבלה1[לתשלום]) -> 0.077777775 | E22: 4.000648148 | F22: =(SUM($C$4:C22)+SUM('חישוב שעות'!$I$9:$I$11))/הכנס_יעד_חודשי -> 0.4666990741
A23: 2022-08-20 | B23: 2022-08-20 | C23: =SUMIF(טבלה2[תאריך],A23,טבלה2[סך שעות])+SUMIF(טבלה1[תאריך],A23,טבלה1[סה"כ]) -> 00:00:00 | D23: =SUMIF(טבלה2[תאריך],A23,טבלה2[לתשלום])+SUMIF(טבלה1[תאריך],A23,טבלה1[לתשלום]) -> 0 | E23: 0 | F23: =(SUM($C$4:C23)+SUM('חישוב שעות'!$I$9:$I$11))/הכנס_יעד_חודשי -> 0.4666990741
A24: 2022-08-21 | B24: 2022-08-21 | C24: =SUMIF(טבלה2[תאריך],A24,טבלה2[סך שעות])+SUMIF(טבלה1[תאריך],A24,טבלה1[סה"כ]) -> 00:00:00 | D24: =SUMIF(טבלה2[תאריך],A24,טבלה2[לתשלום])+SUMIF(טבלה1[תאריך],A24,טבלה1[לתשלום]) -> 0 | E24: 0 | F24: =(SUM($C$4:C24)+SUM('חישוב שעות'!$I$9:$I$11))/הכנס_יעד_חודשי -> 0.4666990741
A25: 2022-08-22 | B25: 2022-08-22 | C25: =SUMIF(טבלה2[תאריך],A25,טבלה2[סך שעות])+SUMIF(טבלה1[תאריך],A25,טבלה1[סה"כ]) -> 00:00:00 | D25: =SUMIF(טבלה2[תאריך],A25,טבלה2[לתשלום])+SUMIF(טבלה1[תאריך],A25,טבלה1[לתשלום]) -> 0 | E25: 0 | F25: =(SUM($C$4:C25)+SUM('חישוב שעות'!$I$9:$I$11))/הכנס_יעד_חודשי -> 0.4666990741
A26: 2022-08-23 | B26: 2022-08-23 | C26: =SUMIF(טבלה2[תאריך],A26,טבלה2[סך שעות])+SUMIF(טבלה1[תאריך],A26,טבלה1[סה"כ]) -> 00:00:00 | D26: =SUMIF(טבלה2[תאריך],A26,טבלה2[לתשלום])+SUMIF(טבלה1[תאריך],A26,טבלה1[לתשלום]) -> 0 | E26: 0 | F26: =(SUM($C$4:C26)+SUM('חישוב שעות'!$I$9:$I$11))/הכנס_יעד_חודשי -> 0.4666990741
A27: 2022-08-24 | B27: 2022-08-24 | C27: =SUMIF(טבלה2[תאריך],A27,טבלה2[סך שעות])+SUMIF(טבלה1[תאריך],A27,טבלה1[סה"כ]) -> 00:00:00 | D27: =SUMIF(טבלה2[תאריך],A27,טבלה2[לתשלום])+SUMIF(טבלה1[תאריך],A27,טבלה1[לתשלום]) -> 0 | E27: 0 | F27: =(SUM($C$4:C27)+SUM('חישוב שעות'!$I$9:$I$11))/הכנס_יעד_חודשי -> 0.4666990741
A28: 2022-08-25 | B28: 2022-08-25 | C28: =SUMIF(טבלה2[תאריך],A28,טבלה2[סך שעות])+SUMIF(טבלה1[תאריך],A28,טבלה1[סה"כ]) -> 00:00:00 | D28: =SUMIF(טבלה2[תאריך],A28,טבלה2[לתשלום])+SUMIF(טבלה1[תאריך],A28,טבלה1[לתשלום]) -> 0 | E28: 0 | F28: =(SUM($C$4:C28)+SUM('חישוב שעות'!$I$9:$I$11))/הכנס_יעד_חודשי -> 0.4666990741
A29: 2022-08-26 | B29: 2022-08-26 | C29: =SUMIF(טבלה2[תאריך],A29,טבלה2[סך שעות])+SUMIF(טבלה1[תאריך],A29,טבלה1[סה"כ]) -> 00:00:00 | D29: =SUMIF(טבלה2[תאריך],A29,טבלה2[לתשלום])+SUMIF(טבלה1[תאריך],A29,טבלה1[לתשלום]) -> 0 | E29: 0 | F29: =(SUM($C$4:C29)+SUM('חישוב שעות'!$I$9:$I$11))/הכנס_יעד_חודשי -> 0.4666990741
A30: 2022-08-27 | B30: 2022-08-27 | C30: =SUMIF(טבלה2[תאריך],A30,טבלה2[סך שעות])+SUMIF(טבלה1[תאריך],A30,טבלה1[סה"כ]) -> 00:00:00 | D30: =SUMIF(טבלה2[תאריך],A30,טבלה2[לתשלום])+SUMIF(טבלה1[תאריך],A30,טבלה1[לתשלום]) -> 0 | E30: 0 | F30: =(SUM($C$4:C30)+SUM('חישוב שעות'!$I$9:$I$11))/הכנס_יעד_חודשי -> 0.4666990741
A31: 2022-08-28 | B31: 2022-08-28 | C31: =SUMIF(טבלה2[תאריך],A31,טבלה2[סך שעות])+SUMIF(טבלה1[תאריך],A31,טבלה1[סה"כ]) -> 00:00:00 | D31: =SUMIF(טבלה2[תאריך],A31,טבלה2[לתשלום])+SUMIF(טבלה1[תאריך],A31,טבלה1[לתשלום]) -> 0 | E31: 0 | F31: =(SUM($C$4:C31)+SUM('חישוב שעות'!$I$9:$I$11))/הכנס_יעד_חודשי -> 0.4666990741
A32: 2022-08-29 | B32: 2022-08-29 | C32: =SUMIF(טבלה2[תאריך],A32,טבלה2[סך שעות])+SUMIF(טבלה1[תאריך],A32,טבלה1[סה"כ]) -> 00:00:00 | D32: =SUMIF(טבלה2[תאריך],A32,טבלה2[לתשלום])+SUMIF(טבלה1[תאריך],A32,טבלה1[לתשלום]) -> 0 | E32: 0 | F32: =(SUM($C$4:C32)+SUM('חישוב שעות'!$I$9:$I$11))/הכנס_יעד_חודשי -> 0.4666990741
A33: 2022-08-30 | B33: 2022-08-30 | C33: =SUMIF(טבלה2[תאריך],A33,טבלה2[סך שעות])+SUMIF(טבלה1[תאריך],A33,טבלה1[סה"כ]) -> 00:00:00 | D33: =SUMIF(טבלה2[תאריך],A33,טבלה2[לתשלום])+SUMIF(טבלה1[תאריך],A33,טבלה1[לתשלום]) -> 0 | E33: 0 | F33: =(SUM($C$4:C33)+SUM('חישוב שעות'!$I$9:$I$11))/הכנס_יעד_חודשי -> 0.4666990741
A34: 2022-08-31 | B34: 2022-08-31 | C34: =SUMIF(טבלה2[תאריך],A34,טבלה2[סך שעות])+SUMIF(טבלה1[תאריך],A34,טבלה1[סה"כ]) -> 00:00:00 | D34: =SUMIF(טבלה2[תאריך],A34,טבלה2[לתשלום])+SUMIF(טבלה1[תאריך],A34,טבלה1[לתשלום]) -> 0 | E34: 0 | F34: =(SUM($C$4:C34)+SUM('חישוב שעות'!$I$9:$I$11))/הכנס_יעד_חודשי -> 0.4666990741
E35: שעות החסרות | F35: =1-F34 -> 0.5333009259
